Cogmind - Beta 10.2 @@@ ROGUE MODE // 2022.01.06 @ 07:35:50 Player: GoSagan Result: Destroyed by L-31 Rogue with Katana Performance ------------- Evolutions (1) 500 Regions Visited (2) 400 Robots Destroyed (19) 95 Value Destroyed (497) 497 Prototype IDs (0) 0 Alien Tech Used (0) 0 Bonus (0) 0 TOTAL SCORE: 1492 Bonus ------- None Cogmind --------- Core Integrity 0/400 Matter 263/300 Energy 100/100 System Corruption 0% Temperature Cool (0) Movement Core (50) Location -9/Materials Parts ------- > --- POWER (1) -------- (None) > --- PROPULSION (4) --- (None) > --- UTILITY (2) ------ (None) > --- WEAPON (2) ------- Hammer > --- INVENTORY (4) ---- High-capacity Storage Unit Hammer Peak State ------------ > --- POWER ------------ Light Ion Engine > --- PROPULSION ------- Aluminum Leg Aluminum Leg Aluminum Leg Aluminum Leg > --- UTILITY ---------- High-capacity Storage Unit > --- WEAPON ----------- Assault Rifle Assault Rifle > --- INVENTORY -------- Hover Unit Tractor Beam Hammer Hammer [Rating: 8] Favorites ----------- Power Light Ion Engine Engine Light Ion Engine Propulsion Aluminum Leg Leg Aluminum Leg Hover Unit Hover Unit Utility High-capacity Storage Unit Device ECM Suite Storage High-capacity Storage Unit Weapon Assault Rifle Ballistic Gun Assault Rifle Impact Weapon Hammer Build | -11 -10 -9 ------- Run | Scr Mat Mat Slots Evolved 2 | . . 2 Power . | . . . Propulsion 2 | . . 2 Utility . | . . . Weapon . | . . . Parts Attached 21 | 4 5 12 Power 3 | 1 1 1 Engine 3 | 1 1 1 Core . | . . . Reactor . | . . . Propulsion 5 | 2 . 3 Treads . | . . . Leg 4 | 2 . 2 Wheel . | . . . Hover 1 | . . 1 Flight . | . . . Utility 4 | . 2 2 Device 2 | . 1 1 Storage 2 | . 1 1 Processor . | . . . Hackware . | . . . Protection . | . . . Artifact . | . . . Weapon 9 | 1 2 6 Energy Gun . | . . . Energy Cannon . | . . . Ballistic Gun 5 | 1 2 2 Ballistic Cannon . | . . . Launcher . | . . . Special Weapon . | . . . Impact Weapon 4 | . . 4 Slashing Weapon . | . . . Piercing Weapon . | . . . Special Melee Weapon . | . . . Unidentified Prototypes . | . . . Parts Lost 9 | . . 9 Power 1 | . . 1 Propulsion 5 | . . 5 Utility 1 | . . 1 Weapon 2 | . . 2 Highest Loss Streak 5 | . . 5 Average Slot Usage (%) 66 | . 78 56 Engine 9 | . 10 9 Leg 21 | . 28 14 Hover 1 | . . 3 Device 4 | . 8 . Storage 6 | . 3 8 Ballistic Gun 18 | . 27 10 Impact Weapon 4 | . . 8 Naked Turns . | . . . Heaviest Build 40 | 7 36 40 Greatest Support 40 | 20 20 40 Greatest Overweight (x) 13 | . 1 13 Average Overweight (x) . | . . 1 Largest Inventory Capacity 12 | 4 12 12 Average Capacity 8 | 4 5 10 Most Carried 7 | 4 7 6 Average Carried 3 | 2 3 3 Final Capacity 12 | 4 12 4 Final Carried 7 | 3 7 2 Class Distribution -------------------- 100% | Mutant Dominant Class ---------------- Mutant | -10/Materials Mutant | -9/Materials Resources | -11 -10 -9 ----------- Run | Scr Mat Mat Matter Collected 709 | 118 205 386 Remotely . | . . . Salvage Created 736 | . 205 531 Parts 40 | . 15 25 Haulers Intercepted . | . . . Recyclers Shooed 2 | . . 2 Parts Field Recycled . | . . . Retrieved Matter . | . . . Parts Self-Destructed . | . . . Prevented . | . . . Kills | -11 -10 -9 ------- Run | Scr Mat Mat Combat Hostiles Destroyed 13 | . 5 8 Guns 12 | . 5 7 Classes Destroyed 5 | . 2 3 Worker 3 | . . 3 Recycler 2 | . . 2 Watcher 1 | . 1 . Grunt 12 | . 5 7 Sentry 1 | . . 1 Best Kill Streak 3 | . 2 3 Combat Bots Only 2 | . 2 2 Max Kills in Single Turn 1 | . 1 1 Gunslinging . | . . . Exploded . | . . . Melee . | . . . Uniques/NPCs Destroyed . | . . . Combat | -11 -10 -9 -------- Run | Scr Mat Mat Damage Taken 1330 | . 262 1068 Core 462 | . 45 417 Absorbed by Shields . | . . . Core Remaining (%) 91 | 100 82 . Volleys Fired 101 | . 25 76 Largest 2 | . 2 1 Hottest 40 | . 40 23 Shots Fired 126 | . 50 76 Gun 126 | . 50 76 Cannon . | . . . Launcher . | . . . Special . | . . . Kinetic 126 | . 50 76 Thermal . | . . . Explosive . | . . . Electromagnetic . | . . . Robot Hit Streak 10 | . 5 10 Robot Miss Streak 3 | . 2 3 Penetration Max . | . . . Secondary Targets . | . . . Shots Hit Robots 96 | . 28 68 Core Hits 29 | . 11 18 Critical Hits 1 | . . 1 Critical Kills . | . . . Critical Parts Destroyed 1 | . . 1 Melee Attacks 22 | . . 22 Impact 22 | . . 22 Slashing . | . . . Piercing . | . . . Sneak Attacks 1 | . . 1 Combat Hostiles . | . . . Follow-up Attacks . | . . . Damage Inflicted 1466 | . 349 1117 Guns 1064 | . 348 716 Cannons . | . . . Explosions . | . . . Melee 401 | . . 401 Ramming 1 | . 1 . Kinetic 1064 | . 348 716 Thermal . | . . . Explosive . | . . . Electromagnetic . | . . . Impact 401 | . . 401 Slashing . | . . . Piercing . | . . . Highest Corruption . | . . . Average Corruption . | . . . Corruption Purged . | . . . Overload Shots . | . . . Overflow Damage 39 | . . 39 Projectiles . | . . . Explosions . | . . . Melee 39 | . . 39 Knockbacks 1 | . . 1 Impact 1 | . . 1 Kinetic . | . . . Secondary . | . . . Self-Inflicted Damage . | . . . Shots . | . . . Rammed 1 | . 1 . Targets Rammed 1 | . 1 . Kicked . | . . . Crushed . | . . . Highest Temperature . | . . . Average Temperature . | . . . Received Heat Transfer 606 | . 144 462 Siege Activations . | . . . Robots Corrupted . | . . . Combat Hostiles . | . . . Parts Fried 5 | . . 5 Impact Corruptions 4 | . . 4 Robots Melted . | . . . Combat Hostiles . | . . . Parts Melted . | . . . Heat Transferred . | . . . Parts Sabotaged . | . . . Parts Stolen . | . . . Parts Stripped . | . . . Power Chain Reactions . | . . . Missiles Intercepted . | . . . Alert | -11 -10 -9 ------- Run | Scr Mat Mat Peak Influence 248 | . 145 248 Initial 43 | . . 43 Average 85 | . 60 115 Maximum Alert Level 1 | . . 1 Low Security (%) 93 | 100 100 87 Level 1 6 | . . 12 Level 2 . | . . . Level 3 . | . . . Level 4 . | . . . Level 5 . | . . . High Security . | . . . Max Security . | . . . Squads Dispatched 3 | . 2 1 Investigation 1 | . 1 . Extermination . | . . . Reinforcement 2 | . 1 1 Assault . | . . . Garrison . | . . . Intercept . | . . . Construction Impeded . | . . . Haulers Reinforced . | . . . Stealth | -11 -10 -9 --------- Run | Scr Mat Mat Distress Signals 4 | . 1 3 Communications Jammed . | . . . Distress Signals . | . . . Times Spotted 37 | . 11 26 Peak Tracking Total 7 | . 3 7 Tactical Retreats 7 | . 4 3 Traps | -11 -10 -9 ------- Run | Scr Mat Mat Traps Triggered 2 | . 2 . Indirectly . | . . . Trap Hack Attempts . | . . . Triggered . | . . . Disarmed . | . . . Reprogrammed . | . . . Reused . | . . . Traps Extracted . | . . . Installed . | . . . Triggered . | . . . Machines | -11 -10 -9 ---------- Run | Scr Mat Mat Machines Disabled . | . . . Max in Single Turn . | . . . Machines Sabotaged . | . . . Garrisons Compromised . | . . . Overloaded Fab Kills . | . . . Fab Network Shutdowns . | . . . Hacking | -11 -10 -9 --------- Run | Scr Mat Mat Machines Accessed 2 | . 1 1 Terminals 1 | . 1 . Fabricators . | . . . Repair Stations . | . . . Recycling Units 1 | . . 1 Scanalyzers . | . . . Garrison Access . | . . . Total Hacks 3 | . 2 1 Successful 3 | . 2 1 Failed . | . . . Catastrophic . | . . . Database Lockouts . | . . . Manual . | . . . Terminals 2 | . 2 . Fabricators . | . . . Repair Stations . | . . . Recycling Units 1 | . . 1 Scanalyzers . | . . . Garrison Access . | . . . Terminal Hacks 2 | . 2 . Record 2 | . 2 . Fabricator Hacks . | . . . Repair Station Hacks . | . . . Recycling Unit Hacks 1 | . . 1 Retrieve Components 1 | . . 1 Scanalyzer . | . . . Garrison Access Hacks . | . . . Unauthorized Hacks . | . . . Terminals . | . . . Fabricators . | . . . Repair Stations . | . . . Recycling Units . | . . . Scanalyzers . | . . . Garrison Access . | . . . Data Cores Recovered . | . . . Used . | . . . Hacking Detections . | . . . Full Trace Events . | . . . Feedback Events . | . . . Feedback Blocked . | . . . Robot Schematics Acquired . | . . . Robots Built . | . . . Matter . | . . . Time . | . . . Total Robot Build Rating . | . . . Part Schematics Acquired . | . . . Parts Built . | . . . Matter . | . . . Time . | . . . Total Part Build Rating . | . . . Parts Repaired . | . . . Time . | . . . Parts Recycled . | . . . Recycled Matter . | . . . Retrieved Matter . | . . . Retrieved Components 1 | . . 1 Parts Scanalyzed . | . . . Part Schematics Acquired . | . . . Parts Damaged . | . . . Bothacking | -11 -10 -9 ------------ Run | Scr Mat Mat Used RIF Installer . | . . . Robots Hacked . | . . . Non-combat . | . . . Combat . | . . . Robot Hacks Applied . | . . . Relay Couplers Released . | . . . Robots Rewired . | . . . Allies Hacked . | . . . Hacks Repelled . | . . . Allies | -11 -10 -9 -------- Run | Scr Mat Mat Total Allies . | . . . Largest Group . | . . . Highest-Rated Group . | . . . Highest-Rated Ally . | . . . Total Orders . | . . . Ally Attacks . | . . . Total Damage . | . . . Kills . | . . . Allies Corrupted . | . . . Allies Melted . | . . . Intel | -11 -10 -9 ------- Run | Scr Mat Mat Robot Analysis Total . | . . . Derelict Logs Recovered . | . . . Drone Launches . | . . . Drone Recoveries . | . . . Exploration | -11 -10 -9 ------------- Run | Scr Mat Mat Turns Passed 1649 | 63 770 816 Spaces Moved 963 | 58 511 394 Core 62 | 28 . 34 Treads . | . . . Legs 692 | 30 511 151 Wheels . | . . . Hover 209 | . . 209 Flight . | . . . Fastest Speed 50 | 50 120 50 Average Speed 131 | 86 127 143 Slowest Speed 700 | 120 150 700 Overloaded Moves . | . . . Propulsion Burnouts . | . . . Robots Hopped . | . . . Cave-ins Triggered . | . . . Exploration Rate (%) 15 | 3 28 16 Regions Visited 2 Branch Regions . Pre-discovered Areas . | . . . Known Exits Taken . | . . . Unknown Exits Taken 2 | 1 1 . Scrap Searched . | . . . Spaces Dug . | . . . Terrain Destroyed . | . . . Melee . | . . . Projectile . | . . . AOE . | . . . Terrain Rammed . | . . . Walls Destroyed . | . . . Machines Disabled . | . . . Actions | -11 -10 -9 --------- Run | Scr Mat Mat Total 1198 | 72 586 540 Wait 51 | . 23 28 Move 961 | 57 510 394 Hop . | . . . Pick Up 25 | 9 15 1 Fast Attach . | . . . Attach 20 | 4 5 11 Detach 6 | . . 6 Swap 1 | . . 1 Drop 10 | 2 7 1 Fire 101 | . 25 76 Melee 22 | . . 22 Ram . | . . . Kick 1 | . 1 . Crush . | . . . Escape Stasis . | . . . Rewire . | . . . Trap . | . . . Miscellaneous . | . . . Route ------- -11/Scrapyard -10/Materials -9/Materials History --------- Turn | Location | Event 5 | -11/Scrapyard | Discovered new exit (range 16) 64 | -11/Scrapyard | Entered Materials 339 | -10/Materials | Build established: Mutant 640 | -10/Materials | Discovered new exit (range 9) 834 | -10/Materials | Entered another Materials area 834 | -9/Materials | Evolved 2 slots: Propulsion x2 1158 | -9/Materials | Lost 5 parts (4n1w) 1606 | -9/Materials | Core integrity fell below 50% 1630 | -9/Materials | Lost 3 parts (1p1n1w) 1640 | -9/Materials | Core integrity fell below 20% 1650 | -9/Materials | Destroyed by L-31 Rogue with Katana Last Messages --------------- 01491_ Current location identified: Materials >>Retrieve(Components) Retrieving 1 components... Reclamation Unit 01519_ Acquired 30 matter. 01524_ Acquired 91 matter. 01545_ K-01 Serf cleans the Terminal. 01548_ Lgt. Ion Engine destroyed. 01550_ K-01 Serf cleans the Terminal. 01577_ Hover Unit destroyed. 01599_ Hvy. Assault Rifle destroyed. 01627_ Destroyed Heat Sink. 01627_ G-34 Mercenary system corrupted by crushing effect. 01628_ G-34 Mercenary system terminally corrupted. 01628_ Sml. Laser fried. 01628_ Aluminum Leg fried. 01628_ Ion Engine fried. 01638_ Destroyed Sml. Laser. 01638_ G-34 Mercenary system corrupted by crushing effect. 01639_ Tractor Beam destroyed. Map ----- +----------------------------------------------------+ | ??????????????????????????????????????######## # | | ??????????????????????????????????????# # # | | ??????????????????????????????????????# "" # # | | ??????????????????????????????????????# ! Y" / + | | ??????????????????????????????????????# "" # # | | ??????????????????????????????????????# # # | | ??????????????????????????????????????# = # # | | ??????????????????????????????################ # | | ###############################"""""## #???# # | | ^ #""T""## #???# # | | ^^ #???# # | | % #???# # | | #########+################# T #???# # | | ????# #???????????# """ #??## # | | ????# #???????????#] """ !#### | | ????# ! ! #???????????# """ | | ????# #???????????# | | ????# """ #???????????# | | ????# " " """ #???????????# %##"Y"####+##### | | ????# "R" """ #???????????# ##""" ###### | | ????# """ #???????????# ##### #????? | | ????###########???????????# % #???# #????? | | ??????????????????????????# #???# #????? | | ???????????????????######## #???# #????? | | ???????????????????# # #???# #????? | | ???????????????????# @# #???# #????? | | ???????????????????# %lk #???# #????? | | ???????????????????# | #Y #???###########????? | | ???????????????????# # % #??????????????????? | | ???????????????????# # #??????????????????? | | ???????????????????############??????????????????? | | ?????????????????????????????????????????????????? | | ?????????????????????????????????????????????????? | | ?????????????????????????????????????????????????? | | ?????????????????????????????????????????????????? | | ?????????????????????????????????????????????????? | | ?????????????????????????????????????????????????? | | ?????????????????????????????????????????????????? | | ?????????????????????????????????????????????????? | | ?????????????????????????????????????????????????? | | | | | | | | | | | | | | | | | | | | | +----------------------------------------------------+ Best States ------------- Heat Dissipation 28 Energy Generation 10 Energy Capacity 250 Matter Stores 300 Matter Capacity 300 Sight Range 16 Terrain Scan Density 10 ECM Strength 1 Evasion (%) 53 Item Schematics ----------------- None Robot Schematics ------------------ None Fabricated ------------ Nothing Alien Tech Used ----------------- None Achievements -------------- None Challenges ------------ None Game ------ Seed MiniDiametricInverter Manual? 0 Play Time 00:54:46 Cumulative 5.0 hours Start 2022.01.05 @ 19:54:38 End 2022.01.06 @ 07:35:50 Sessions 1 Manual Loads 0 Difficulty Rogue Special Mode None Game No. 11 Rogue 11 Adventurer 0 Explorer 0 Win Type - Total 0 Types 0/0/0/0/0/0/0/0/0 Lore% 4 Gallery% 9 Achievement% 7 Wizard Run 0 Options --------- ASCII 0 Keyboard 1 Movement Numpad Keybinds 0 Fullscreen 1 Font 18/SmallcapsGlow Map View 76x50 Tactical HUD 1 Map Filters NONE Filters NONE Steam 1 RUN: f8f8fece-1db7-4925-940c-61f08a591e3b